bitfinex/quotes_SOLUSD_20250402
["timestamp","ask_amount","ask_price","bid_price","bid_amount"]
[1743606629862,0.03,129.1,129.06,26.0]
[1743606630049,0.03,129.1,129.07,7.7477]
[1743606630229,0.03,129.1,129.08,9.48]
[1743606630655,0.03,129.1,129.04,7.7495]
[1743606630838,0.03,129.1,129.05,9.48]
[1743606631031,0.03,129.1,129.06,9.48]
[1743606632035,0.03,129.1,129.0,19.3798]
[1743606632232,49.91659643,129.09,129.01,9.46]
[1743606632456,49.91659643,129.07,129.02,9.46]
[1743606632732,49.91659643,129.09,129.03,299.32]
[1743606632936,0.03,129.1,129.04,9.46]
[1743606633164,49.91659643,129.09,129.04,9.46]
[1743606633470,49.91659643,129.06,129.04,9.46]
[1743606633668,49.91659643,129.05,129.03,289.86]
[1743606633872,18.79181043,129.06,129.01,289.86]
[1743606634074,27.1233,129.04,129.01,289.86]
[1743606634366,49.91659643,129.03,129.01,289.86]
[1743606634938,77.03989643,129.04,129.02,9.52]
[1743606635260,27.1233,129.04,129.02,9.52]
[1743606635676,27.1233,129.04,129.01,289.86]
[1743606635839,77.03989643,129.04,129.01,289.86]
[1743606636040,7.7495,129.04,129.01,289.86]
[1743606636640,0.03,129.1,128.98,7.7529]
[1743606636641,7.7477,129.07,129.02,289.9]
[1743606636863,27.117,129.07,129.03,9.52]
[1743606637637,7.7477,129.07,129.03,9.52]
[1743606637957,49.91659643,129.06,129.03,9.52]
[1743606638264,77.03359643,129.07,129.03,9.52]
[1743606638439,49.91659643,129.06,129.03,9.52]
[1743606638636,49.91659643,129.04,129.02,289.9]
[1743606638840,49.91659643,129.03,129.02,289.9]
[1743606639277,27.117,129.07,129.02,289.9]
[1743606639572,49.91659643,129.03,129.02,289.9]
[1743606639870,49.91659643,129.04,129.02,289.9]
[1743606640167,69.28589643,129.07,129.03,9.56]
[1743606640341,49.91659643,129.06,129.03,9.56]
[1743606640545,19.3693,129.07,129.03,9.56]
[1743606640938,69.28589643,129.07,129.03,9.56]
[1743606641155,49.91659643,129.06,129.03,9.56]
[1743606641670,49.91659643,129.04,129.02,289.9]
[1743606642269,7.7501,129.03,129.02,289.9]
[1743606642579,7.7489,129.05,129.02,289.9]
[1743606643040,7.7489,129.05,129.03,9.54]
[1743606643260,7.7471,129.08,129.03,9.54]
[1743606643658,49.91659643,129.07,129.03,9.54]
[1743606644164,0.03,129.1,129.03,9.54]
[1743606644364,0.03,129.1,129.03,17.2901]
[1743606644792,0.03,129.1,129.03,9.54]
[1743606645270,49.94659643,129.1,129.02,289.9]
[1743606645473,49.94659643,129.1,129.03,9.5]
[1743606645876,49.91659643,129.08,129.03,9.5]
[1743606646085,49.91659643,129.07,129.03,9.5]
[1743606646290,7.7483,129.06,129.03,9.5]
[1743606646786,77.03569643,129.06,129.03,9.5]
[1743606647160,27.1191,129.06,129.03,9.5]
[1743606647676,49.91659643,129.05,129.03,9.5]
[1743606647886,49.91659643,129.04,129.03,289.88]
[1743606648186,18.64964886,129.03,129.0,0.063]
[1743606648389,7.7507,129.02,129.0,0.063]
[1743606648898,18.79181043,129.01,129.0,0.0001]
[1743606649198,68.70840686,129.01,128.91,0.063]
[1743606649365,49.91659643,128.98,128.91,0.063]
[1743606649556,49.91659643,128.98,128.92,9.46]
[1743606649760,49.91659643,128.97,128.92,9.46]
[1743606649961,49.91659643,128.98,128.92,9.46]
[1743606650396,49.91659643,128.97,128.92,9.46]
[1743606650978,49.91659643,128.96,128.91,0.063]
[1743606651175,49.91659643,128.95,128.92,9.42]
[1743606651375,49.91659643,128.95,128.93,9.42]
[1743606652265,7.7555,128.94,128.93,9.42]
[1743606652490,57.67209643,128.94,128.91,0.063]
[1743606652698,57.67209643,128.94,128.92,299.36]
[1743606652998,57.67209643,128.94,128.93,9.4]
[1743606653185,76.46390686,128.94,128.92,289.96]
[1743606653378,49.91659643,128.93,128.92,289.96]
[1743606653881,7.7555,128.94,128.92,289.96]
[1743606654083,27.1352,128.99,128.92,289.96]
[1743606654279,18.79181043,128.96,128.92,289.96]
[1743606654580,49.91659643,128.97,128.92,289.96]
[1743606654581,7.7539,128.97,128.92,289.96]
[1743606654781,77.05479643,128.97,128.92,289.96]
[1743606655181,13.1227,129.04,128.93,7.7561]
[1743606655371,12.6227,129.04,128.93,7.7561]
[1743606655569,27.1254,129.03,128.93,7.7561]
[1743606655863,49.91659643,129.02,128.93,7.7561]
[1743606656069,18.79181043,129.02,128.93,7.7561]
[1743606656496,7.7513,129.01,128.93,7.7561]
[1743606656795,7.7502,129.03,128.93,27.1464]
[1743606657489,7.7502,129.03,128.96,26.0]
[1743606657693,7.7502,129.03,128.97,9.3]
[1743606658292,68.70840686,129.02,128.92,289.96]
[1743606658491,18.79181043,129.02,128.93,9.28]
[1743606659497,7.7513,129.01,128.93,17.036]
[1743606659694,18.79181043,129.02,128.93,36.4263]
[1743606659695,7.7509,129.02,128.93,36.4263]
[1743606660498,7.7509,129.02,128.93,17.036]
[1743606660879,0.03,129.06,128.97,0.14216157]
[1743606661198,0.03,129.06,128.98,9.24]
[1743606661382,0.03,129.06,128.93,124.0514]
[1743606661579,0.03,129.06,128.97,26.0]
[1743606662811,0.03,129.06,128.98,26.0]
[1743606662975,0.03,129.06,128.99,9.2]
[1743606663175,0.03,129.06,129.02,26.0]
[1743606663494,0.03,129.06,129.03,290.02]
[1743606663810,0.03,129.06,129.04,9.2]
[1743606665401,12.42216157,129.06,129.03,290.02]
[1743606665602,7.89106157,129.05,129.04,9.16]
[1743606665808,76.45730686,129.05,129.04,9.16]
[1743606666718,18.79181043,129.04,129.03,290.02]
[1743606667018,18.79181043,129.04,129.0,289.96]
[1743606667019,68.70840686,129.04,129.0,289.96]
[1743606667216,49.91659643,129.02,129.0,289.96]
[1743606667520,7.7513,129.01,129.0,289.96]
[1743606667919,7.7513,129.01,129.0,299.08]
[1743606668711,7.7495,129.04,129.0,299.08]
[1743606669491,12.42216157,129.06,129.0,299.08]
[1743606669492,0.17216157,129.06,129.0,299.08]
[1743606669696,18.82181043,129.06,129.0,299.08]
[1743606670008,38.19281043,129.06,129.0,299.08]
[1743606670397,0.03,129.1,129.04,26.0]
[1743606670696,0.03,129.1,129.05,9.08]
[1743606671220,27.1408,129.1,129.05,9.08]
[1743606671515,0.03,129.1,129.06,7.7483]
[1743606671901,0.03,129.1,129.05,16.8287]
[1743606672107,0.03,129.1,129.05,9.08]
[1743606672315,0.03,129.1,129.05,16.8287]
[1743606672496,0.03,129.1,129.05,9.08]
[1743606672697,0.03,129.1,129.06,289.9]
[1743606674301,0.03,129.1,129.06,297.6483]
[1743606674800,0.03,129.1,129.06,289.9]
[1743606675323,0.03,129.1,129.06,297.6482]
[1743606678129,0.03,129.1,129.06,7.7482]
[1743606678333,0.063,129.13,129.09,26.0]
[1743606678502,7.7393,129.21,129.13,26.0]
[1743606678709,4.4998,129.24,129.13,26.0]
[1743606678710,12.2374,129.24,129.13,26.0]
[1743606678914,12.2373,129.24,129.13,26.0]
[1743606679318,12.2373,129.24,129.14,9.2]
[1743606679521,7.737,129.25,129.17,26.0]
[1743606680329,12.9066,129.26,129.18,7.7411]
[1743606680330,20.643,129.26,129.18,7.7411]
[1743606680630,7.7359,129.27,129.19,9.18]
[1743606681337,0.14216157,129.28,129.19,9.18]
[1743606681525,18.79181043,129.28,129.19,9.18]
[1743606681708,81.41555238,129.29,129.19,9.18]
[1743606681914,31.5323,129.29,129.19,9.18]
[1743606682129,81.41555238,129.29,129.19,9.18]
[1743606682333,49.88325238,129.27,129.16,7.7423]
[1743606682538,49.88325238,129.27,129.17,9.16]
[1743606682836,49.88325238,129.27,129.18,289.7]
[1743606683013,18.79181043,129.26,129.18,289.7]
[1743606683213,18.79181043,129.26,129.19,9.2]
[1743606683214,50.02541395,129.22,129.19,9.2]
[1743606683431,49.88325238,129.2,129.18,289.7]
[1743606683719,62.50875238,129.2,129.18,289.7]
[1743606684021,12.6255,129.2,129.18,289.7]
[1743606684340,7.7405,129.19,129.18,289.7]
[1743606684557,7.74,129.2,129.18,289.7]
[1743606684841,57.62325238,129.2,129.19,9.18]
[1743606685218,7.74,129.2,129.19,9.18]
[1743606685938,0.14216157,129.19,129.18,289.7]
[1743606686141,50.02541395,129.19,129.16,289.68]
[1743606686326,7.7411,129.18,129.16,289.68]
[1743606687024,7.7411,129.18,129.17,9.14]
[1743606687423,7.7393,129.21,129.17,9.14]
[1743606687833,27.0876,129.21,129.17,9.14]
[1743606688719,76.97085238,129.21,129.17,9.14]
[1743606689037,68.53290124,129.2,129.18,9.12]
[1743606689240,68.53290124,129.19,129.18,9.12]
[1743606689541,18.64964886,129.19,129.18,9.12]
[1743606690231,26.39014886,129.19,129.18,9.12]
[1743606690749,7.7405,129.19,129.18,9.12]
[1743606691119,45.74144886,129.19,129.16,289.68]
[1743606691324,45.74144886,129.19,129.06,0.063]
[1743606691325,49.88325238,129.17,129.06,0.063]
[1743606691647,68.53290124,129.15,129.06,0.063]
[1743606691857,18.64964886,129.15,129.06,7.8111]
[1743606692150,0.14216157,129.14,129.06,0.063]
[1743606692318,7.7441,129.13,129.06,0.063]
[1743606692520,7.7441,129.13,129.07,9.08]
[1743606692521,57.62735238,129.13,129.07,9.08]
[1743606692743,27.1044,129.13,129.08,289.66]
[1743606693423,76.98765238,129.13,129.08,289.66]
[1743606696429,7.7417,129.17,129.1,7.7459]
[1743606696848,7.7417,129.17,129.09,9.06]
[1743606696849,7.7417,129.17,129.09,16.8063]
[1743606697258,7.7417,129.17,129.09,36.1726]
[1743606697748,7.7412,129.18,129.09,36.1726]
[1743606698343,7.7412,129.18,129.09,16.8063]
[1743606698857,7.7412,129.18,129.12,26.0]
[1743606699054,88.39810271,129.33,129.12,26.0]
[1743606699055,16.706,129.24,129.12,26.0]
[1743606699430,68.53290124,129.23,129.12,26.0]
[1743606699750,0.03,129.17,129.13,9.0]
[1743606700658,0.03,129.17,129.13,16.744]
[1743606700962,0.03,129.17,129.13,9.0]
[1743606701166,0.03,129.17,129.13,16.7441]
[1743606701633,0.03,129.17,129.13,36.1044]
[1743606701961,0.03,129.17,129.16,26.0]
[1743606702132,0.03,129.17,129.13,16.7441]
[1743606702333,0.03,129.17,129.13,9.0]
[1743606702529,0.03,129.17,129.14,1.93338516]
[1743606702759,0.03,129.17,129.15,289.64]
[1743606702967,0.03,129.17,129.16,9.0]
[1743606703137,49.91325238,129.17,129.16,9.0]
[1743606703444,0.03,129.17,129.16,9.0]
[1743606707956,18.64964886,129.16,129.11,289.64]
[1743606708168,49.8439566,129.14,129.11,289.64]
[1743606708466,76.9441566,129.15,129.11,289.64]
[1743606708765,7.7429,129.15,129.11,289.64]
[1743606709140,7.7429,129.15,129.12,8.96]
[1743606709347,40.99181157,129.15,129.12,8.96]
[1743606709537,33.24891157,129.13,129.11,289.64]
[1743606709744,51.89856043,129.12,129.08,289.64]
[1743606709944,33.24891157,129.1,129.08,289.64]
[1743606710551,7.7465,129.09,129.08,289.64]
[1743606710974,7.7465,129.09,129.08,298.58]
[1743606711761,41.02102266,129.09,129.08,298.58]
[1743606711962,59.67067152,129.09,129.08,289.64]
[1743606712147,7.7465,129.09,129.08,298.56]
[1743606712542,7.7465,129.09,129.08,298.623]
[1743606714674,7.7459,129.1,129.08,298.623]
[1743606715271,57.65157677,129.1,129.08,298.623]
[1743606715654,7.7459,129.1,129.08,298.623]
[1743606715951,57.65157677,129.1,129.08,298.623]
[1743606716880,7.7441,129.13,129.08,298.623]
[1743606718761,7.7435,129.14,129.08,306.3699]
[1743606719450,7.7435,129.14,129.08,298.623]
[1743606719853,49.90567677,129.13,129.08,298.623]
[1743606720464,77.00797677,129.14,129.08,298.623]
[1743606720869,77.00797677,129.14,129.08,289.703]
[1743606721067,77.00797677,129.14,129.09,8.82]
[1743606721655,7.7435,129.14,129.09,8.82]
[1743606721856,49.90567677,129.18,129.09,8.82]
[1743606722087,7.7402,129.2,129.12,26.0]
[1743606722263,69.25127677,129.23,129.12,26.0]
[1743606722467,16.8018,129.24,129.12,26.0]
[1743606722783,7.7375,129.24,129.16,26.0]
[1743606722948,19.3426,129.25,129.17,16.5617]
[1743606722949,7.7369,129.25,129.17,16.5617]
[1743606723151,57.64257677,129.25,129.18,289.76]
[1743606723455,76.98487677,129.25,129.18,289.76]
[1743606724153,49.90567677,129.23,129.18,289.76]
[1743606724351,49.90567677,129.19,129.18,289.76]
[1743606724675,49.90567677,129.19,129.16,289.7]
[1743606724676,18.64964886,129.18,129.16,289.7]
[1743606724978,76.29702563,129.17,129.16,289.7]
[1743606725176,95.65132563,129.17,129.12,0.063]
[1743606725374,49.90567677,129.16,129.12,0.063]
[1743606725559,49.90567677,129.15,129.12,0.063]
[1743606725761,49.90567677,129.16,129.12,0.063]
[1743606725968,49.90567677,129.16,129.13,8.8]
[1743606726158,95.65132563,129.17,129.13,8.8]
[1743606726358,7.7417,129.17,129.13,8.8]
[1743606726977,27.092,129.19,129.13,8.8]
[1743606727286,49.90567677,129.16,129.13,8.8]
[1743606727473,49.90567677,129.14,129.12,0.063]
[1743606727858,18.64964886,129.18,129.12,0.063]
[1743606728063,49.90567677,129.17,129.12,0.063]
[1743606728258,49.90567677,129.14,129.12,0.063]
[1743606728458,49.90567677,129.13,129.12,0.063]
[1743606728683,49.90567677,129.13,129.12,8.843]
[1743606728986,27.1065,129.12,129.08,0.063]
[1743606730193,77.01217677,129.12,129.09,8.78]
[1743606730490,27.1065,129.12,129.09,8.78]
[1743606730982,77.01217677,129.12,129.09,8.78]
[1743606731189,49.90567677,129.11,129.09,8.78]
[1743606731782,77.01217677,129.12,129.1,8.78]
[1743606731994,7.7447,129.12,129.1,8.78]
[1743606732684,57.65037677,129.12,129.11,289.72]
[1743606732871,95.66182563,129.12,129.08,0.063]
[1743606733075,95.66182563,129.12,129.11,298.56]
[1743606733076,45.75614886,129.12,129.11,298.56]
[1743606733286,95.66182563,129.12,129.11,298.56]
[1743606733483,18.64964886,129.11,129.08,0.063]
[1743606733794,18.64964886,129.11,129.08,0.0001]
[1743606733795,68.55734411,129.09,129.08,0.0001]
[1743606733994,68.69950568,129.09,129.08,0.0001]
[1743606734673,52.07373013,129.09,129.08,0.0001]
[1743606734871,0.14216157,129.08,129.06,0.0001]
[1743606735075,41.0296197,129.07,129.06,0.0001]
[1743606735770,0.14216157,129.05,128.99,0.063]
[1743606735982,33.2819197,129.03,128.99,0.063]
[1743606736376,33.2819197,129.0,128.99,0.063]
[1743606736580,30.84214886,129.02,128.99,0.063]
[1743606736781,33.2819197,129.01,128.99,0.063]
[1743606737114,41.0338197,129.0,128.99,0.063]
[1743606737271,60.4136197,129.0,128.97,0.063]
[1743606737478,60.4136197,129.0,128.98,8.8]
[1743606737878,33.2819197,128.99,128.98,8.8]
[1743606738075,27.1317,129.0,128.98,8.8]
[1743606738295,60.4136197,129.0,128.98,8.8]
[1743606738497,7.7519,129.0,128.98,8.8]
[1743606739076,7.7513,129.01,128.98,8.8]
[1743606739481,41.0332197,129.01,128.98,8.8]
[1743606739689,41.06892265,129.01,128.98,8.8]
[1743606739891,33.31762265,129.0,128.98,8.8]
[1743606740088,33.31762265,128.99,128.98,8.8]
[1743606740291,49.98122858,129.0,128.98,8.8]
[1743606741193,18.64964886,128.98,128.97,0.063]
[1743606741399,68.63087744,128.98,128.95,0.063]
[1743606741600,49.98122858,128.96,128.91,0.063]
[1743606741794,18.64964886,128.98,128.91,0.063]
[1743606741795,49.98122858,128.94,128.91,0.063]
[1743606741980,49.98122858,128.93,128.91,0.063]
[1743606742180,65.8964,128.99,128.91,0.063]
[1743606742381,49.98122858,128.95,128.91,0.063]
[1743606742590,49.98122858,128.94,128.91,0.063]
[1743606742790,49.98122858,128.95,128.92,289.92]
[1743606743187,7.7555,128.94,128.93,8.74]
[1743606744196,57.73672858,128.94,128.91,0.063]
[1743606744377,18.64964886,128.91,128.89,289.92]
[1743606744684,49.98122858,128.9,128.89,289.92]
[1743606744884,68.63087744,128.9,128.88,0.063]
[1743606745082,68.63087744,128.89,128.88,0.063]
[1743606745282,76.53153901,128.89,128.88,0.063]
[1743606745505,0.14216157,128.88,128.85,0.063]
[1743606745802,68.63087744,128.86,128.85,0.063]
[1743606746300,68.77303901,128.86,128.85,0.0001]
[1743606746492,68.63087744,128.86,128.85,0.0001]
[1743606746877,68.77303901,128.86,128.85,0.0001]
[1743606747077,7.7573,128.91,128.85,0.0001]
[1743606747274,77.13182858,128.91,128.85,0.0001]
[1743606747478,7.7573,128.91,128.85,0.0001]
[1743606747905,17.7955,128.94,128.85,0.0001]
[1743606748113,7.7555,128.94,128.85,0.0001]
[1743606748426,49.98122858,128.93,128.85,0.0001]
[1743606748594,49.98122858,128.91,128.85,0.0001]
[1743606748911,49.98122858,128.9,128.85,0.0001]
[1743606749206,57.73852858,128.91,128.86,8.76]
[1743606749601,7.7573,128.91,128.86,8.76]
[1743606750504,49.98122858,129.06,128.85,0.0001]
[1743606750505,19.387,128.96,128.87,8.78]
[1743606750703,18.64964886,128.95,128.87,8.78]
[1743606750907,49.98122858,128.94,128.87,8.78]
[1743606751088,49.98122858,128.93,128.87,8.78]
[1743606751288,7.7567,128.92,128.87,8.78]
[1743606752205,27.1485,128.92,128.87,8.78]
[1743606752507,49.98122858,128.91,128.87,8.78]
[1743606752695,49.98122858,128.9,128.87,8.78]
[1743606752902,68.63087744,128.91,128.85,0.0001]
[1743606753099,18.64964886,128.91,128.86,8.74]
[1743606753407,7.7585,128.89,128.87,8.74]
[1743606753585,7.7585,128.89,128.88,8.76]
[1743606754299,26.40814886,128.89,128.88,8.76]
[1743606754487,7.7585,128.89,128.88,8.76]
[1743606755803,26.40814886,128.89,128.88,8.76]
[1743606756211,57.73972858,128.89,128.88,8.76]
[1743606756598,7.7585,128.89,128.88,8.76]
[1743606757393,7.7585,128.89,128.85,0.0001]
[1743606757593,7.7585,128.89,128.86,8.74]
[1743606759423,27.1541,128.9,128.86,8.74]
[1743606759641,77.13532858,128.9,128.86,8.74]
[1743606759923,18.64964886,128.89,128.86,8.74]
[1743606760100,68.71180746,128.89,128.86,8.74]
[1743606760296,52.02646127,128.89,128.86,8.74]
[1743606760725,18.64964886,128.89,128.86,8.74]
[1743606760914,60.53091241,128.9,128.85,0.0001]
[1743606761114,33.37681241,128.89,128.86,8.7]
[1743606761306,33.37681241,128.88,128.86,8.7]
[1743606761508,41.13651241,128.87,128.85,0.0001]
[1743606761696,33.37681241,128.86,128.85,0.0001]
[1743606762018,0.14216157,128.85,128.84,290.063]
[1743606762200,18.64964886,128.84,128.83,290.303]
[1743606762524,44.64964886,128.81,128.8,0.063]
[1743606762829,44.64964886,128.81,128.75,0.063]
[1743606762830,33.37681241,128.76,128.75,0.063]
[1743606763329,18.79181043,128.8,128.75,8.743]
[1743606763533,33.37681241,128.76,128.75,8.743]
[1743606763698,33.37681241,128.77,128.75,8.743]
[1743606763907,7.7645,128.79,128.75,8.743]
[1743606763908,33.37681241,128.78,128.75,8.743]
[1743606764234,33.37681241,128.77,128.75,8.743]
[1743606764609,18.64964886,128.78,128.75,8.743]
[1743606764801,33.37681241,128.77,128.75,8.743]
[1743606765321,33.37681241,128.76,128.75,8.743]
[1743606766025,33.37681241,128.8,128.75,8.743]
[1743606766530,26.41174886,128.83,128.75,8.743]
[1743606766531,7.7621,128.83,128.75,8.743]
[1743606766828,33.37681241,128.83,128.75,16.5099]
[1743606767007,33.37681241,128.82,128.75,16.5099]
[1743606767736,33.37681241,128.82,128.75,8.743]
[1743606768531,33.37681241,128.82,128.75,16.5099]
[1743606769041,33.37681241,128.86,128.75,29.5246]
[1743606769206,33.37681241,128.86,128.78,26.0]
[1743606769606,33.37681241,128.86,128.79,7.7645]
[1743606769833,33.37681241,128.86,128.8,299.04]
[1743606770408,46.41801241,128.88,128.8,299.04]
[1743606770614,45.71121241,128.89,128.8,299.04]
[1743606771032,33.37681241,128.87,128.8,299.04]
[1743606771622,41.13681241,128.87,128.8,306.8037]
[1743606771837,7.76,128.87,128.8,306.8037]
[1743606772011,41.13681241,128.87,128.8,306.8037]
[1743606772810,33.37681241,128.87,128.8,306.8037]
[1743606773007,7.7598,128.87,128.8,306.8037]
[1743606773435,7.8223,128.88,128.8,306.8037]
[1743606774132,26.47194886,128.88,128.8,299.04]
[1743606774537,59.84876127,128.88,128.8,299.04]
[1743606774712,7.8223,128.88,128.8,299.04]
[1743606775111,26.47194886,128.88,128.8,299.04]
[1743606775328,59.84876127,128.88,128.8,299.04]
[1743606775733,79.24656127,128.88,128.8,299.04]
[1743606776041,60.59691241,128.88,128.8,299.04]
[1743606776223,7.8223,128.88,128.8,306.8039]
[1743606776424,59.84876127,128.88,128.8,306.8039]
[1743606776630,59.84876127,128.88,128.8,299.04]
[1743606776818,59.84876127,128.88,128.81,8.54]
[1743606777212,79.24656127,128.88,128.81,8.54]
[1743606777729,7.7603,128.86,128.81,8.54]
[1743606779116,7.7599,128.87,128.81,8.54]
[1743606779312,0.063,128.88,128.81,8.54]
[1743606779714,7.8223,128.88,128.82,1.93889272]
[1743606780635,45.86974886,128.88,128.82,1.93889272]
[1743606780832,18.79181043,128.87,128.82,1.93889272]
[1743606781036,52.16862284,128.87,128.82,1.93889272]
[1743606781234,18.79181043,128.87,128.83,8.5]
[1743606781746,18.79181043,128.87,128.84,290.36]
[1743606781929,7.7603,128.86,128.84,290.36]
[1743606782636,41.13711241,128.86,128.84,290.36]
[1743606782816,0.14216157,128.85,128.84,290.36]
[1743606783644,18.79181043,128.85,128.84,298.84]
[1743606783827,7.7603,128.86,128.84,298.84]
[1743606784240,7.76,128.87,128.84,298.84]
[1743606784820,7.8223,128.88,128.84,298.84]
[1743606785537,0.063,128.87,128.84,298.84]
[1743606786852,18.85481043,128.87,128.84,298.84]
[1743606787852,52.16862284,128.85,128.84,298.8]
[1743606788344,7.7621,128.83,128.82,8.44]
[1743606788538,18.79181043,128.82,128.81,290.36]
[1743606788739,18.79181043,128.82,128.81,298.8]
[1743606789523,18.79181043,128.82,128.81,290.36]
[1743606789524,52.16862284,128.82,128.81,290.36]
[1743606789830,18.79181043,128.8,128.78,290.43]
[1743606790025,18.79181043,128.78,128.77,8.48]
[1743606790229,52.16862284,128.78,128.77,8.48]
[1743606790425,59.93372284,128.78,128.77,8.48]
[1743606791728,79.34662284,128.78,128.76,8.5]
[1743606792044,33.37681241,128.77,128.76,8.5]
[1743606792349,52.16862284,128.77,128.75,0.063]
[1743606792551,41.14311241,128.76,128.75,0.063]
[1743606792921,26.55811043,128.76,128.75,0.063]
[1743606793340,7.7663,128.76,128.75,0.063]
[1743606793627,7.7663,128.76,128.75,8.543]
[1743606794951,7.7663,128.76,128.75,0.063]
[1743606794952,53.47107398,128.76,128.75,0.063]
[1743606795330,26.55811043,128.76,128.75,0.063]
[1743606796952,7.7663,128.76,128.75,0.063]
[1743606797328,7.90846157,128.76,128.75,0.063]
[1743606797536,59.93492284,128.76,128.75,0.0001]
[1743606798721,59.93492284,128.76,128.71,0.063]
[1743606798926,52.16862284,128.72,128.71,0.063]
[1743606799532,18.79181043,128.72,128.71,0.063]
[1743606799733,33.37681241,128.74,128.71,0.063]
[1743606800046,27.1822,128.76,128.71,0.063]
[1743606801140,7.7663,128.76,128.71,0.063]
[1743606801347,7.7663,128.76,128.72,290.54]
[1743606802025,27.1822,128.76,128.72,290.54]
[1743606803252,7.7663,128.76,128.72,290.54]
[1743606803640,7.766,128.77,128.72,290.54]
[1743606803841,27.1804,128.77,128.72,290.54]
[1743606804861,19.4144,128.77,128.72,290.54]
[1743606805261,7.7651,128.78,128.72,290.54]
[1743606805652,7.7651,128.78,128.72,298.3086]
[1743606805867,7.7639,128.8,128.72,298.3086]
[1743606806056,7.7639,128.8,128.75,26.0]
[1743606806256,7.7639,128.8,128.76,8.48]
[1743606806453,27.1738,128.8,128.76,8.48]
[1743606807472,52.16862284,128.79,128.76,8.48]
[1743606807843,7.7639,128.8,128.76,8.48]
[1743606808670,7.7636,128.81,128.76,8.48]
[1743606809044,27.172,128.81,128.76,8.48]
[1743606809250,0.063,128.77,128.76,8.48]
[1743606809449,0.063,128.77,128.72,290.57]
[1743606809450,33.58197398,128.77,128.72,0.03]
[1743606809766,33.37681241,128.76,128.72,8.53]
[1743606809935,0.063,128.77,128.72,8.53]
[1743606811049,0.063,128.77,128.72,0.03]
[1743606811237,33.37681241,128.75,128.72,0.03]
[1743606811436,52.16862284,128.76,128.72,0.03]
[1743606811637,18.79181043,128.76,128.72,0.03]
[1743606811848,18.79181043,128.76,128.73,8.46]
[1743606812255,52.16862284,128.76,128.73,8.46]
[1743606813038,0.063,128.77,128.73,8.46]
[1743606813238,0.063,128.77,128.76,26.0]
[1743606813453,12.0156799,128.87,128.77,26.0]
[1743606813657,27.1615,128.86,128.77,26.0]
[1743606813834,7.7603,128.86,128.77,26.0]
[1743606814051,12.0156799,128.87,128.77,26.0]
[1743606814052,19.7756799,128.87,128.77,26.0]
[1743606814254,18.7756799,128.87,128.77,26.0]
[1743606815054,18.7756799,128.87,128.81,26.0]
[1743606815262,18.7756799,128.87,128.82,299.04]
[1743606815446,38.1749799,128.87,128.82,299.04]
[1743606816074,60.53611241,128.87,128.82,299.04]
[1743606816581,27.1593,128.87,128.83,8.42]
[1743606817172,18.79181043,128.86,128.83,8.42]
[1743606817677,7.76,128.87,128.83,8.42]
[1743606818051,27.1593,128.87,128.83,8.42]
[1743606818251,18.79181043,128.86,128.82,290.6]
[1743606818479,18.79181043,128.86,128.83,8.4]